Workbook

Sheet Folha1
C2: Plano Regional de Educação Rodoviária
C4: IV Final Regional de Orientação Rodoviária
C5: 3º CICLO
C6: Ano lectivo 2010/2011
C8: Respostas incorretas (x2) | D8: Tempo | E8: Pontos não visitados (x5) | F8: Total
B9: EBS D. Lucinda Andrade | C9: 4 | D9: 15.53 | E9: 0 | F9: =C9*2+D9+E9*5 -> 23.53 | G9: 1º
B10: EB23 de Sto. António | C10: 4 | D10: 16.57 | E10: 0 | F10: =C10*2+D10+E10*5 -> 24.57 | G10: 2º
B11: EBS Dr. Ângelo Augusto da Silva | C11: 5 | D11: 15.19 | E11: 0 | F11: =C11*2+D11+E11*5 -> 25.19 | G11: 3º
B12: EBS Bispo D. Manuel Ferreira Cabral | C12: 5 | D12: 16.15 | E12: 0 | F12: =C12*2+D12+E12*5 -> 26.15
B13: EBS Prof. Dr. Francisco de Freitas Branco | C13: 5 | D13: 16.53 | E13: 0 | F13: =C13*2+D13+E13*5 -> 26.53
B14: EB23 Dr. Horácio Bento Gouveia | C14: 3 | D14: 22.59 | E14: 0 | F14: =C14*2+D14+E14*5 -> 28.59
B15: EB23 da Torre | C15: 7 | D15: 16.19 | E15: 0 | F15: =C15*2+D15+E15*5 -> 30.19
B16: EBS Padre Manuel Álvares | C16: 5 | D16: 21.04 | E16: 0 | F16: =C16*2+D16+E16*5 -> 31.04
B17: EB23 de São Jorge | C17: 4 | D17: 24.02 | E17: 0 | F17: =C17*2+D17+E17*5 -> 32.02
B18: EB23 Bartolomeu Perestrelo | C18: 9 | D18: 15 | E18: 0 | F18: =C18*2+D18+E18*5 -> 33
B19: EBS da Calheta | C19: 5 | D19: 23.16 | E19: 0 | F19: =C19*2+D19+E19*5 -> 33.16
B20: EB23 de Porto da Cruz | C20: 5 | D20: 18.24 | E20: 1 | F20: =C20*2+D20+E20*5 -> 33.24
B21: EBS Gonçalves Zarco | C21: 6 | D21: 21.53 | E21: 0 | F21: =C21*2+D21+E21*5 -> 33.53
B22: EBS Santa Cruz | C22: 8 | D22: 18.14 | E22: 0 | F22: =C22*2+D22+E22*5 -> 34.14
B23: EB123 Prof Francisco M. S. Barreto | C23: 6 | D23: 23.01 | E23: 0 | F23: =C23*2+D23+E23*5 -> 35.01
B24: EB23 Cónego João Jacinto Gonçalves de Andrade | C24: 5 | D24: 25.04 | E24: 0 | F24: =C24*2+D24+E24*5 -> 35.04
B25: EB23 do Estreito de Câmara de Lobos | C25: 9 | D25: 18.59 | E25: 0 | F25: =C25*2+D25+E25*5 -> 36.59
B26: EB23 do Caniço | C26: 10 | D26: 17.34 | E26: 0 | F26: =C26*2+D26+E26*5 -> 37.34
B27: EBS do Carmo | C27: 9 | D27: 21.23 | E27: 0 | F27: =C27*2+D27+E27*5 -> 39.23
B28: EB23 Dr. Alfredo Nóbrega Junior | C28: 5 | D28: 26.05 | E28: 1 | F28: =C28*2+D28+E28*5 -> 41.05
B29: EBS de Machico | C29: 8 | D29: 27.03 | E29: 0 | F29: =C29*2+D29+E29*5 -> 43.03
B30: EBS da Ponta do Sol | C30: 10 | D30: 26.26 | E30: 0 | F30: =C30*2+D30+E30*5 -> 46.26
B31: EB23 São Roque | C31: 9 | D31: 29.1 | E31: 0 | F31: =C31*2+D31+E31*5 -> 47.1
B32: EB23 dos Louros | C32: 9 | D32: 23.44 | E32: 2 | F32: =C32*2+D32+E32*5 -> 51.44
B33: EB23 do Caniçal | C33: 7 | D33: 40 | E33: 0 | F33: =C33*2+D33+E33*5 -> 54
B34: Colégio Infante D. Henrique | C34: 8 | D34: 29 | E34: 2 | F34: =C34*2+D34+E34*5 -> 55

Sheet Folha2

Sheet Folha3
